Workbook

Sheet MSU
B1: Mika Lehto | E1: 5.7.1970
B2: SUPERPESIS | E2: Runkosarja | I2: Kärkilyönnit (KL), pesänvälit | P2: Runkosarja TOP-30 | U2: Ylempi loppusarja | AB2: Ylempi loppusarja TOP-10 | AG2: Play off, voitot, voittoprosentti | AL2: Arvo-ottelut | AO2: Mitalit
B3: Vuosi | C3: Sija | D3: Seura | E3: OTT | F3: KUN | G3: LÖI | H3: TOI | I3: KL | J3: 0 > 1 | K3: 1 > 2 | L3: 2 > 3 | M3: 3 > k | N3: KL-% | P3: LÖI | Q3: TOI | R3: L+T | S3: KL | U3: OTT | V3: KUN | W3: LÖI | X3: TOI | Y3: KL | Z3: KL-% | AB3: LÖI | AC3: TOI | AD3: L+T | AE3: KL | AG3: Puolivälierät | AH3: Välierät | AI3: Pronssi | AJ3: Finaalit | AL3: IL | AM3: LL | AN3: hSM | AO3: K | AP3: H | AQ3: P
B4: 1990 | C4: 6. | D4: RPL | F4: ykkössarja
B5: 1991 | C5: 2. | D5: RPL | F5: suomensarja
B6: 1992 | C6: 4. | D6: RPL | F6: suomensarja
B7: 1993 | C7: 3. | D7: RPL | F7: suomensarja
B8: 1994 | C8: 2. | D8: RPL | F8: suomensarja
B9: 1995 | C9: 6. | D9: RPL-R 2 | F9: suomensarja
B10: 1996 | C10: 4. | D10: RPL-R | F10: ykköspesis
B11: 1997 | C11: 9. | D11: RPL-R | F11: ykköspesis
B12: 1998 | C12: 13. | D12: Paukku | F12: ykköspesis
B13: 1999 | C13: 11. | D13: KiPe | F13: ykköspesis
B14: 2000 | C14: 1. | D14: KiPe | F14: ykköspesis
B15: 2001 | C15: 2. | D15: KiPe | F15: ykköspesis
B16: 2002 | C16: 7. | D16: KiPe | E16: 24 | F16: 2 | G16: 9 | H16: 14 | I16: 54 | J16: 28 | K16: 8 | L16: 7 | M16: 11 | N16: 49.5 % | U16: 3 | V16: 1 | W16: 1 | X16: 2 | Y16: 12 | Z16: 66.7 % | AG16: 0-3 PattU
B17: 2003 | C17: 2. | D17: KiPe | E17: 20 | F17: 0 | G17: 2 | H17: 13 | I17: 56 | J17: 44 | K17: 6 | L17: 4 | M17: 2 | N17: 60.2 % | U17: 1 | V17: 0 | W17: 0 | X17: 1 | Y17: 1 | Z17: 25.0 % | AJ17: 0-2 SoJy | AP17: 1
B18: 2004 | C18: 8. | D18: RiiPe | F18: ykköspesis
B19: 2005 | C19: 7. | D19: RiiPe | F19: ykköspesis
B20: 2006 | C20: 10. | D20: RiiPe | F20: ykköspesis
B21: 2007 | C21: 12. | D21: RiiPe | F21: ykköspesis
B22: 2008 | C22: 5. | D22: VJJ | F22: suomensarja
B23: ****
B24: 2012 | C24: 10. | D24: RiiPe | F24: suomensarja
B25: ****
B26: 2016 | C26: 5. | D26: RPL* | F26: suomensarja
B27: 2017 | C27: 3. | D27: RPL* | F27: suomensarja
B28: Yhteensä | E28: 44 | F28: 2 | G28: 11 | H28: 27 | I28: 110 | J28: 72 | K28: 14 | L28: 11 | M28: 13 | N28: 54.5 % | P28: 0-0-0 | Q28: 0-0-0 | R28: 0-0-0 | S28: 0-0-0 | U28: 4 | V28: 1 | W28: 1 | X28: 3 | Y28: 13 | Z28: =PRODUCT(N34) -> 59.1 % | AA28: =SUM(AA4:AA27) -> 0.0 % | AB28: 0-0-0 | AC28: 0-0-0 | AD28: 0-0-0 | AE28: 0-0-0 | AG28: 0/1 | AH28: 0/0 | AI28: 0/0 | AJ28: 0/1 | AL28: =SUM(AL4:AL27) -> 0 | AM28: 0 | AN28: 0 | AO28: 0 | AP28: 1 | AQ28: 0
AG29: 0.0 % | AH29: 0.0 % | AI29: 0.0 % | AJ29: 0.0 %
B30: Pesispörssi | D30: 107.0
B32: URA SUPERISSA | E32: OTT | F32: KUN | G32: LÖI | H32: TOI | I32: KL | K32: ka/L | L32: ka/T | M32: ka/KL | N32: KL-% | P32: ENSIMMÄISET RUNKOSARJASSA | AG32: ENSIMMÄISET PUDOTUSPELEISSÄ | AL32: YLEISÖ
B33: Runkosarja | E33: 44 | F33: 2 | G33: 11 | H33: 27 | I33: 110 | K33: 0.30 | L33: 0.61 | M33: 2.50 | N33: 54.5 % | O33: =PRODUCT(O28) -> 0 | P33: Ottelu | R33: 18.07. 1993 RPL - SMJ 10-17 | Z33: 1. ottelu | AC33: 23 v 0 kk 13 pv | AG33: Ottelu | AH33: 1. 22.08. 2002 PattU - KiPe 2-0 | AL33: 1508 | AN33: 32 v 1 kk 17 pv
B34: Ylempi loppusarja | E34: 4 | F34: 1 | G34: 1 | H34: 3 | I34: 13 | K34: 0.50 | L34: 0.75 | M34: 3.25 | N34: 59.1 % | P34: Lyöty | R34: 15.08. 2001 Kiri - KiPe 1-2 (0-4, 6-3, 0-0, 2-3) | Z34: 11. ottelu | AC34: 31 v 1 kk 10 pv | AG34: Lyöty | AH34: 1. 22.08. 2002 PattU - KiPe 2-0 | AL34: 1508 | AN34: 32 v 1 kk 17 pv
B35: Alempi loppusarja | E35: 14 | F35: 0 | G35: 6 | H35: 15 | I35: 57 | K35: 0.43 | L35: 1.07 | M35: 4.07 | N35: 67.1 % | P35: Tuotu | R35: 16.08. 2000 KiPe - AA 0-1 (4-4, 4-6) | Z35: 4. ottelu | AC35: 30 v 1 kk 11 pv | AG35: Tuotu | AH35: 3. 25.08. 2002 PattU - KiP1 2-1 s | AL35: 1511 | AN35: 32 v 1 kk 20 pv
B36: KAIKKI | E36: 62 | F36: 3 | G36: 18 | H36: 45 | I36: 180 | K36: 0.34 | L36: 0.73 | M36: 2.90 | N36: =PRODUCT(180/309) -> 58.3 % | O36: =SUM(O33:O35) -> 0 | P36: Kunnari | R36: 21.07. 2002 KiPe - KaMa 2-0 (3-2, 5-2) | Z36: 33. ottelu | AC36: 32 v 0 kk 16 pv | AG36: Kunnari | AH36: 3. 25.08. 2002 PattU - KiP1 2-1 s | AL36: 1511 | AN36: 32 v 1 kk 20 pv
B38: Seurat | D38: RPL = Riihimäen Pallonlyöjät (1924), kasvattajaseura RPL-R = RPL-Riihimäki (1994) Paukku = Hämeenlinnan Paukku (1961) KiPe = Kinnarin Pesis (1998) RiiPe = Riihimäen Pesis (1999) VJJ = Vantaanjoen Juoksu (2001) RPL* = RiiPe

Sheet MYP, MSS
B1: Mika Lehto | E1: 5.7.1970
B2: YKKÖSPESIS | E2: Runkosarja | L2: Runkosarja TOP-10 | Q2: Jatkosarjat | X2: SUOMENSARJA | AA2: Runkosarja | AH2: Runkosarja TOP-10 | AM2: Jatkosarjat
B3: Vuosi | C3: Sija | D3: Seura | E3: OTT | F3: KUN | G3: LÖI | H3: TOI | I3: KL | J3: KL-% | L3: LÖI | M3: TOI | N3: L+T | O3: KL | Q3: OTT | R3: KUN | S3: LÖI | T3: TOI | U3: KL | V3: KL-% | X3: Vuosi | Y3: Sija | Z3: Seura | AA3: OTT | AB3: KUN | AC3: LÖI | AD3: TOI | AE3: KL | AF3: KL-% | AH3: LÖI | AI3: TOI | AJ3: L+T | AK3: KL | AM3: OTT | AN3: KUN | AO3: LÖI | AP3: TOI | AQ3: KL | AR3: KL-%
B4: 1990 | C4: 6. | D4: RPL | E4: 1 | F4: 0 | G4: 0 | H4: 0
X5: 1991 | Y5: 2. | Z5: RPL
X6: 1992 | Y6: 4. | Z6: RPL
X7: 1993 | Y7: 3. | Z7: RPL
X8: 1994 | Y8: 2. | Z8: RPL
X9: 1995 | Y9: 6. | Z9: RPL-R 2
B10: 1996 | C10: 4. | D10: RPL-R | E10: 22 | F10: 1 | G10: 9 | H10: 15 | I10: 71
B11: 1997 | C11: 9. | D11: RPL-R | E11: 26 | F11: 0 | G11: 23 | H11: 21 | I11: 106
B12: 1998 | C12: 13. | D12: Paukku | E12: 22 | F12: 3 | G12: 19 | H12: 21 | I12: 126 | O12: 8.
B13: 1999 | C13: 11. | D13: KiPe
B14: 2000 | C14: 1. | D14: KiPe | E14: 26 | F14: 1 | G14: 8 | H14: 25 | I14: 93 | J14: 62.8 % | K14: 148
B15: 2004 | C15: 8. | D15: RiiPe | E15: 22 | F15: 1 | G15: 13 | H15: 20 | I15: 84 | J15: 64.1 % | K15: 131
B16: 2005 | C16: 7. | D16: RiiPe | E16: 22 | F16: 0 | G16: 14 | H16: 20 | I16: 82 | J16: 69.5 % | K16: 118
B17: 2001 | C17: 2. | D17: KiPe | E17: 26 | F17: 1 | G17: 26 | H17: 29 | I17: 96 | J17: 56.8 % | K17: 169
B18: 2006 | C18: 10. | D18: RiiPe | E18: 18 | F18: 2 | G18: 6 | H18: 15 | I18: 70 | J18: 63.6 % | K18: 110
B19: 2007 | C19: 12. | D19: RiiPe | E19: 20 | F19: 3 | G19: 6 | H19: 20 | I19: 87 | J19: 60.4 % | K19: 144 | Q19: 2 | R19: 0 | S19: 2 | T19: 5 | U19: 13 | V19: 65.0 % | W19: 20
X20: 2008 | Y20: 5. | Z20: VJJ | AA20: 14 | AB20: 1 | AC20: 16 | AD20: 13 | AE20: 73 | AF20: 68.9 % | AG20: 106
X22: 2012 | Y22: 10. | Z22: RiiPe | AA22: 6 | AB22: 0 | AC22: 3 | AD22: 9 | AE22: 31 | AF22: 58.5 % | AG22: 53
X24: 2016 | Y24: 5. | Z24: RPL* | AA24: 1 | AB24: 0 | AC24: 0 | AD24: 0 | AE24: 1 | AF24: 25.0 % | AG24: 4
X25: 2017 | Y25: 3. | Z25: RPL* | AA25: 8 | AB25: 1 | AC25: 3 | AD25: 3 | AE25: 13 | AF25: 43.3 % | AG25: 30
B26: YHTEENSÄ | E26: =SUM(E4:E25) -> 205 | F26: =SUM(F4:F25) -> 12 | G26: =SUM(G4:G25) -> 124 | H26: =SUM(H4:H25) -> 186 | I26: =SUM(I4:I25) -> 815 | J26: 0.0 % | K26: =SUM(K4:K25) -> 820 | Q26: =SUM(Q4:Q25) -> 2 | R26: =SUM(R4:R25) -> 0 | S26: =SUM(S4:S25) -> 2 | T26: =SUM(T4:T25) -> 5 | U26: =SUM(U4:U25) -> 13 | V26: =PRODUCT(U26/W26) -> 65.0 % | W26: =SUM(W4:W25) -> 20 | X26: YHTEENSÄ | AA26: =SUM(AA4:AA25) -> 29 | AB26: =SUM(AB4:AB25) -> 2 | AC26: =SUM(AC4:AC25) -> 22 | AD26: =SUM(AD4:AD25) -> 25 | AE26: =SUM(AE4:AE25) -> 118 | AF26: =PRODUCT(AE26/AG26) -> 61.1 % | AG26: =SUM(AG4:AG25) -> 193 | AM26: =SUM(AM4:AM25) -> 0 | AN26: =SUM(AN4:AN25) -> 0 | AO26: =SUM(AO4:AO25) -> 0 | AP26: =SUM(AP4:AP25) -> 0 | AQ26: =SUM(AQ4:AQ25) -> 0 | AR26: 0.0 % | AS26: =SUM(AS4:AS25) -> 0
B28: KAIKKI OTTELUT | E28: OTT | F28: KUN | G28: LÖI | H28: TOI | I28: KL | J28: KL-% | L28: ka/L | M28: ka/T | N28: ka/l+t | O28: ka/kl | R28: Seurat | T28: RPL = Riihimäen Pallonlyöjät (1924), kasvattajaseura
B29: SUPERPESIS | E29: 62 | F29: 3 | G29: 18 | H29: 45 | I29: 180 | J29: 57.5 % | K29: =PRODUCT(I29/J29) -> 313.0434783 | L29: =PRODUCT((F29+G29)/E29) -> 0.34 | M29: =PRODUCT(H29/E29) -> 0.73 | N29: =PRODUCT((F29+G29+H29)/E29) -> 1.06 | O29: =PRODUCT(I29/E29) -> 2.90 | T29: RPL-R = RPL-Riihimäki (1994)
B30: YKKÖSPESIS | E30: =PRODUCT(E26+Q26) -> 207 | F30: =PRODUCT(F26+R26) -> 12 | G30: =PRODUCT(G26+S26) -> 126 | H30: =PRODUCT(H26+T26) -> 191 | I30: =PRODUCT(I26+U26) -> 828 | K30: =PRODUCT(K26+W26) -> 840 | L30: =PRODUCT((F30+G30)/E30) -> 0.67 | M30: =PRODUCT(H30/E30) -> 0.92 | N30: =PRODUCT((F30+G30+H30)/E30) -> 1.59 | O30: =PRODUCT(I30/E30) -> 4.00 | T30: Paukku = Hämeenlinnan Paukku (1961)
B31: SUOMENSARJA | E31: =PRODUCT(AA26+AM26) -> 29 | F31: =PRODUCT(AB26+AN26) -> 2 | G31: =PRODUCT(AC26+AO26) -> 22 | H31: =PRODUCT(AD26+AP26) -> 25 | I31: =PRODUCT(AE26+AQ26) -> 118 | J31: =PRODUCT(I31/K31) -> 61.1 % | K31: =PRODUCT(AG26+AS26) -> 193 | L31: =PRODUCT((F31+G31)/E31) -> 0.83 | M31: =PRODUCT(H31/E31) -> 0.86 | N31: =PRODUCT((F31+G31+H31)/E31) -> 1.69 | O31: =PRODUCT(I31/E31) -> 4.07 | T31: KiPe = Kinnarin Pesis (1998)
B32: YHTEENSÄ | E32: =SUM(E29:E31) -> 298 | F32: =SUM(F29:F31) -> 17 | G32: 166 | H32: 261 | I32: 1126 | K32: =SUM(K29:K31) -> 1346.043478 | L32: =PRODUCT((F32+G32)/E32) -> 0.61 | M32: =PRODUCT(H32/E32) -> 0.88 | N32: =PRODUCT((F32+G32+H32)/E32) -> 1.49 | O32: =PRODUCT(I32/E32) -> 3.78 | T32: RiiPe = Riihimäen Pesis (1999)
T33: VJJ = Vantaanjoen Juoksu (2001)
T34: RPL* = RiiPe

Sheet Pelinjohtaja
B1: PELINJOHTAJAKORTTI
B2: Mika Lehto | D2: 5.7.1970
B3: MSU | C3: Runkosarja | J3: Ylempi loppusarja | N3: Alempi loppusarja | R3: Arvo-ottelut | T3: Mitalit | X3: PLAY OFF
B4: Vuosi | C4: Seura | D4: Sija | E4: O | F4: V | G4: H | H4: Voitto-% | J4: O | K4: V | L4: H | M4: Voitto-% | N4: O | O4: V | P4: H | Q4: Voitto-% | R4: IL | S4: LL | T4: 1 | U4: 2 | V4: 3 | X4: Puolivälierä | Y4: Välierä | Z4: Pronssi | AA4: Finaali
B5: 2019 | C5: Tahko | D5: 5. | E5: 7 | F5: 2 | G5: 5 | H5: =PRODUCT(F5/E5) -> 28.6 %
B7: 2021 | C7: Tahko | D7: 6. | E7: 24 | F7: 16 | G7: 8 | H7: =PRODUCT(F7/E7) -> 66.7 % | J7: 4 | K7: 1 | L7: 3 | M7: 25.0 % | X7: 1-3 Virkiä
B8: Yhteensä | E8: =SUM(E5:E7) -> 31 | F8: =SUM(F5:F7) -> 18 | G8: 13 | H8: =PRODUCT(F8/E8) -> 58.1 % | J8: =SUM(J5:J7) -> 4 | K8: =SUM(K5:K7) -> 1 | L8: 3 | M8: 25.0 % | N8: =SUM(N5:N5) -> 0 | O8: =SUM(O5:O5) -> 0 | P8: =SUM(P5:P5) -> 0 | Q8: 0.0 % | R8: =SUM(R5:R5) -> 0 | S8: =SUM(S5:S5) -> 0 | T8: =SUM(T5:T5) -> 0 | U8: =SUM(U5:U5) -> 0 | V8: =SUM(V5:V5) -> 0 | X8: 0 - 1
B10: URA SUPERISSA | E10: O | F10: V | G10: H | H10: Voitto-% | J10: PLAY OFF | M10: SARJAT | N10: O | O10: V | P10: H | Q10: Voitto-% | X10: Seurat: | Y10: Tahko = Hyvinkään Tahko (1915)
B11: Runkosarja | E11: =PRODUCT(E8) -> 31 | F11: =PRODUCT(F8) -> 18 | G11: =PRODUCT(G8) -> 13 | H11: =PRODUCT(F11/E11) -> 58.1 % | J11: Puolivälierät
B12: Ylempi loppusarja | E12: 4 | F12: 1 | G12: 3 | H12: 25.0 % | J12: Välierät
B13: Alempi loppusarja | J13: Finaalit
B14: KAIKKI | E14: =SUM(E11:E13) -> 35 | F14: =SUM(F11:F13) -> 19 | G14: =SUM(G11:G13) -> 16 | H14: =PRODUCT(F14/E14) -> 54.3 % | J14: KAIKKI

Sheet Kärkilyönnit
B1: KÄRKILYÖNNIT RUNKOSARJASSA | V1: VUOSITTAISET SIJOITUKSET TOP - 30
G2: 0 > 1 | J2: 1 > 2 | M2: 2 > 3 | P2: 3 > k | S2: Yhteensä
B3: Vuosi | C3: Sija | D3: Seura | E3: OTT | F3: KL | G3: YHT | H3: % | I3: KL | J3: YHT | K3: % | L3: KL | M3: YHT | N3: % | O3: KL | P3: YHT | Q3: % | R3: KL | S3: YHT | T3: % | V3: Vuosi | W3: Sija | X3: Seura | Y3: 0 > 1 | Z3: 1 > 2 | AA3: 2 > 3 | AB3: 3 > k | AC3: KL
B4: 2002 | C4: 7. | D4: KiPe | E4: 24 | F4: 28 | G4: 47 | H4: 59.6 % | I4: 8 | J4: 13 | K4: 61.5 % | L4: 7 | M4: 16 | N4: 43.8 % | O4: 11 | P4: 33 | Q4: 33.3 % | R4: 54 | S4: 109 | T4: 49.5 % | V4: 2002 | W4: 7. | X4: KiPe
B5: 2003 | C5: 2. | D5: KiPe | E5: 20 | F5: 44 | G5: 75 | H5: 58.7 % | I5: 6 | J5: 6 | K5: 100.0 % | L5: 4 | M5: 6 | N5: 66.7 % | O5: 2 | P5: 6 | Q5: 33.3 % | R5: 56 | S5: 93 | T5: 60.2 % | V5: 2003 | W5: 2. | X5: KiPe | Y5: 19.
B6: Yhteensä | E6: =SUM(E4:E5) -> 44 | F6: =SUM(F4:F5) -> 72 | G6: =SUM(G4:G5) -> 122 | H6: =PRODUCT(F6/G6) -> 59.0 % | I6: =SUM(I4:I5) -> 14 | J6: =SUM(J4:J5) -> 19 | K6: =PRODUCT(I6/J6) -> 73.7 % | L6: =SUM(L4:L5) -> 11 | M6: =SUM(M4:M5) -> 22 | N6: =PRODUCT(L6/M6) -> 50.0 % | O6: =SUM(O4:O5) -> 13 | P6: =SUM(P4:P5) -> 39 | Q6: =PRODUCT(O6/P6) -> 33.3 % | R6: =SUM(R4:R5) -> 110 | S6: =SUM(S4:S5) -> 202 | T6: =PRODUCT(R6/S6) -> 54.5 %
B8: KÄRKILYÖNNIT YLEMMISSÄ PUDOTUSPELEISSÄ | V8: VUOSITTAISET SIJOITUKSET TOP - 30
G9: 0 > 1 | J9: 1 > 2 | M9: 2 > 3 | P9: 3 > k | S9: Yhteensä
B10: Vuosi | C10: Sija | D10: Seura | E10: OTT | F10: KL | G10: YHT | H10: % | I10: KL | J10: YHT | K10: % | L10: KL | M10: YHT | N10: % | O10: KL | P10: YHT | Q10: % | R10: KL | S10: YHT | T10: % | V10: Vuosi | W10: Sija | X10: Seura | Y10: 0 > 1 | Z10: 1 > 2 | AA10: 2 > 3 | AB10: 3 > k | AC10: KL
B11: 2002 | C11: 7. | D11: KiPe | E11: 3 | F11: 7 | G11: 11 | H11: 63.6 % | I11: 1 | J11: 1 | K11: 100.0 % | L11: 2 | M11: 3 | N11: 66.7 % | O11: 2 | P11: 3 | Q11: 66.7 % | R11: 12 | S11: 18 | T11: 66.7 % | V11: 2002 | W11: 7. | X11: KiPe | Y11: 27.
B12: 2003 | C12: 2. | D12: KiPe | E12: 1 | F12: 1 | G12: 4 | H12: 25.0 % | I12: 0 | J12: 0 | K12: 0.0 % | L12: 0 | M12: 0 | N12: 0.0 % | O12: 0 | P12: 0 | Q12: 0.0 % | R12: 1 | S12: 4 | T12: 25.0 % | V12: 2003 | W12: 2. | X12: KiPe
B13: Yhteensä | E13: =SUM(E9:E12) -> 4 | F13: =SUM(F11:F12) -> 8 | G13: =SUM(G11:G12) -> 15 | H13: =PRODUCT(F13/G13) -> 53.3 % | I13: =SUM(I11:I12) -> 1 | J13: =SUM(J11:J12) -> 1 | K13: =PRODUCT(I13/J13) -> 100.0 % | L13: =SUM(L11:L12) -> 2 | M13: =SUM(M11:M12) -> 3 | N13: =PRODUCT(L13/M13) -> 66.7 % | O13: =SUM(O11:O12) -> 2 | P13: =SUM(P11:P12) -> 3 | Q13: =PRODUCT(O13/P13) -> 66.7 % | R13: =SUM(R11:R12) -> 13 | S13: =SUM(S11:S12) -> 22 | T13: =PRODUCT(R13/S13) -> 59.1 %
B15: KÄRKILYÖNNIT
G16: 0 > 1 | J16: 1 > 2 | M16: 2 > 3 | P16: 3 > k | S16: Yhteensä
E17: OTT | F17: KL | G17: YHT | H17: % | I17: KL | J17: YHT | K17: % | L17: KL | M17: YHT | N17: % | O17: KL | P17: YHT | Q17: % | R17: KL | S17: YHT | T17: %
B18: RUNKOSARJA | E18: =PRODUCT(E6) -> 44 | F18: 72 | G18: 122 | H18: 59.0 % | I18: 14 | J18: 19 | K18: 73.7 % | L18: 11 | M18: 22 | N18: 50.0 % | O18: 13 | P18: 39 | Q18: 33.3 % | R18: 110 | S18: 202 | T18: 54.5 %
B19: PLAY OFF | E19: =PRODUCT(E13) -> 4 | F19: =PRODUCT(F13) -> 8 | G19: 15 | H19: 53.3 % | I19: 1 | J19: 1 | K19: 100.0 % | L19: 2 | M19: 3 | N19: 66.7 % | O19: 2 | P19: 3 | Q19: 66.7 % | R19: 13 | S19: 22 | T19: 59.1 %
